bitfinex/quotes_ETHUSD_20230117
["timestamp","ask_amount","ask_price","bid_price","bid_amount"]
[1673931098805,5.08e-06,1567.4,1567.3,63.01218284]
[1673931099019,5.08e-06,1567.4,1567.3,64.23018284]
[1673931099193,5.08e-06,1567.4,1567.3,62.80412643]
[1673931100116,5.08e-06,1567.4,1567.3,64.22563966]
[1673931100742,5.08e-06,1567.4,1567.3,62.35063498]
[1673931100967,5.08e-06,1567.4,1567.3,64.22563966]
[1673931101547,5.08e-06,1567.4,1567.3,62.35063498]
[1673931102638,1.22132918,1567.8,1567.4,0.00342908]
[1673931102848,1.22132918,1567.8,1567.5,25.518]
[1673931102849,1.23107591,1567.8,1567.5,25.518]
[1673931103169,1.23107591,1567.8,1567.6,3.0]
[1673931103412,1.23107591,1567.8,1567.7,12.75754]
[1673931103630,1.23107591,1567.8,1567.7,15.75754]
[1673931104971,1.22132918,1567.8,1567.7,15.75754]
[1673931107958,1.22132918,1567.8,1567.7,17.678631]
[1673931109386,1.0136105,1567.9,1567.7,17.678631]
[1673931110450,0.05884583,1567.9,1567.7,17.678631]
[1673931111700,1.0136105,1567.9,1567.7,17.678631]
[1673931112166,1.0136105,1567.9,1567.7,17.744631]
[1673931114381,1.0136105,1567.9,1567.8,1.7744631]
[1673931114570,1.63411799,1567.9,1567.8,14.5311831]
[1673931119582,1.63411799,1567.9,1567.8,1.7744631]
[1673931119803,1.63411799,1567.9,1567.8,12.75672]
[1673931120023,1.63411799,1567.9,1567.8,12.82072]
[1673931121603,0.05884583,1567.9,1567.8,12.82072]
[1673931122229,1.0136105,1567.9,1567.8,12.82072]
[1673931122579,1.63410212,1567.9,1567.8,12.82072]
[1673931123157,1.6313555,1567.9,1567.8,12.82072]
[1673931124837,0.05609377,1567.9,1567.8,12.82072]
[1673931125082,1.01085844,1567.9,1567.8,12.82072]
[1673931125293,1.63148361,1567.9,1567.8,12.82072]
[1673931126463,1.63146945,1567.9,1567.8,12.82072]
[1673931126651,0.05609377,1567.9,1567.8,19.6335092]
[1673931126876,0.05609377,1567.9,1567.8,20.939346]
[1673931128358,0.05609377,1567.9,1567.8,19.6335092]
[1673931128573,0.05609377,1567.9,1567.8,19.6355092]
[1673931130328,0.05609377,1567.9,1567.8,20.941346]
[1673931130622,0.05609377,1567.9,1567.8,19.6355092]
[1673931136007,0.05609377,1567.9,1567.8,23.69994021]
[1673931136215,0.05609377,1567.9,1567.8,25.80160836]
[1673931136552,0.06718229,1568.0,1567.9,1.0]
[1673931136884,0.06718229,1568.0,1567.9,25.12683055]
[1673931137097,0.06718229,1568.0,1567.9,26.9984987]
[1673931137514,0.06718229,1568.0,1567.9,25.57377845]
[1673931138135,0.06718229,1568.0,1567.9,25.00750264]
[1673931138503,0.06718229,1568.0,1567.9,24.05768914]
[1673931139857,0.06718229,1568.0,1567.9,20.71106507]
[1673931140071,0.06718229,1568.0,1567.9,19.40567273]
[1673931140287,0.06718229,1568.0,1567.9,18.45090953]
[1673931141958,0.06718229,1568.0,1567.9,15.7559]
[1673931143184,0.06718229,1568.0,1567.9,15.8219]
[1673931150681,0.74718229,1568.0,1567.9,15.8219]
[1673931150860,5.14494696,1568.0,1567.9,0.066]
[1673931151071,6.49093695,1568.0,1567.9,0.066]
[1673931152326,5.49093695,1568.0,1567.9,0.066]
[1673931154915,6.92308396,1568.0,1567.9,0.066]
[1673931155079,5.49093695,1568.0,1567.9,0.066]
[1673931155629,6.92308396,1568.0,1567.9,0.066]
[1673931157701,6.98908396,1568.0,1567.8,6.44436]
[1673931157913,5.1439678,1568.0,1567.8,6.44436]
[1673931159315,2.52009397,1568.0,1567.8,12.82272]
[1673931159629,1.08794696,1568.0,1567.8,12.82272]
[1673931162432,0.13318229,1568.0,1567.8,12.82272]
[1673931162648,1.08794696,1568.0,1567.8,12.82272]
[1673931162886,0.13318229,1568.0,1567.8,12.82272]
[1673931163205,1.08794696,1568.0,1567.8,12.82272]
[1673931163380,0.13318229,1568.0,1567.8,12.82272]
[1673931165501,0.13318229,1568.0,1567.8,15.90609487]
[1673931166671,0.13318229,1568.0,1567.8,12.82272]
[1673931167147,0.06718229,1568.0,1567.8,12.82272]
[1673931167358,1.02194696,1568.0,1567.8,12.82272]
[1673931171296,3.66909397,1568.0,1567.8,12.82272]
[1673931171513,1.57518981,1567.9,1567.8,6.44436]
[1673931172055,3.66909397,1568.0,1567.8,6.44436]
[1673931172354,2.79115629,1567.9,1567.8,0.066]
[1673931172506,3.79115629,1567.9,1567.8,0.066]
[1673931172721,2.79115629,1567.9,1567.8,0.066]
[1673931172930,2.79115629,1567.9,1567.7,9.44444]
[1673931173260,2.17076467,1567.9,1567.7,9.44444]
[1673931174307,3.57805211,1568.0,1567.7,19.08235425]
[1673931174671,3.57805211,1568.0,1567.8,3.0]
[1673931174672,1.08794696,1568.0,1567.8,3.0]
[1673931174884,1.08794696,1568.0,1567.9,6.37795]
[1673931175041,1.70823056,1568.0,1567.9,6.37795]
[1673931177202,0.13318229,1568.0,1567.9,6.37795]
[1673931177989,3.30578198,1568.0,1567.8,3.0]
[1673931178364,4.11745619,1568.0,1567.7,6.44473]
[1673931178684,5.11745619,1568.0,1567.7,12.82326]
[1673931178982,1.225,1567.9,1567.7,12.82326]
[1673931179783,2.17976467,1567.9,1567.7,12.82326]
[1673931180404,2.30494696,1568.0,1567.7,13.7730735]
[1673931180611,2.30494696,1568.0,1567.8,0.95407674]
[1673931180899,3.71331499,1568.0,1567.8,7.33214674]
[1673931181187,3.71331499,1568.0,1567.8,6.37807]
[1673931183780,5.145462,1568.0,1567.8,6.37807]
[1673931184218,5.145462,1568.0,1567.8,6.44407]
[1673931186234,1.58935435,1567.9,1567.8,6.44407]
[1673931186828,0.95476467,1567.9,1567.8,6.44407]
[1673931187025,1.58935274,1567.9,1567.8,6.44407]
[1673931188237,5.145462,1568.0,1567.8,7.38489441]
[1673931188543,5.145462,1568.0,1567.8,6.44407]
[1673931189012,1.225,1567.9,1567.8,6.44407]
[1673931189222,1.225,1567.9,1567.8,7.38489719]
[1673931190402,1.225,1567.9,1567.8,13.76325719]
[1673931191812,2.17976467,1567.9,1567.8,6.44407]
[1673931191961,4.99715594,1567.9,1567.8,6.44407]
[1673931192172,4.04239127,1567.9,1567.8,6.44407]
[1673931192610,4.99869355,1567.9,1567.8,6.44407]
[1673931192817,3.56654654,1567.9,1567.8,6.44407]
[1673931193030,4.99869355,1567.9,1567.8,6.44407]
[1673931193992,2.81592222,1567.9,1567.8,6.44407]
[1673931195574,2.81592222,1567.9,1567.8,7.38523422]
[1673931195895,2.81592222,1567.9,1567.8,13.76359422]
[1673931196323,2.81592222,1567.9,1567.8,6.44407]
[1673931197476,7.36010706,1567.9,1567.8,0.06360395]
[1673931197779,7.36010706,1567.9,1567.4,37.4596735]
[1673931197780,5.72439605,1567.8,1567.4,7.3296735]
[1673931197989,1.217,1567.6,1567.4,6.37986]
[1673931198246,0.8017,1567.5,1567.3,22.0853135]
[1673931198520,0.68,1567.5,1567.4,0.8166333]
[1673931198687,1.897,1567.5,1567.4,0.8166333]
[1673931199637,1.217,1567.5,1567.4,7.1966233]
[1673931200162,1.217,1567.5,1567.4,6.37999]
[1673931202181,1.217,1567.5,1567.4,0.066]
[1673931202315,1.77963708,1567.5,1567.4,0.062]
[1673931205384,0.56263708,1567.5,1567.4,0.062]
[1673931206955,0.56263708,1567.5,1567.3,19.20631]
[1673931207204,4.6553708,1567.6,1567.3,12.82617]
[1673931208052,0.07574673,1567.6,1567.3,12.82617]
[1673931209893,0.07574673,1567.6,1567.4,0.81491695]
[1673931210321,0.07574673,1567.6,1567.5,12.75916]
[1673931211560,5.3353708,1567.6,1567.5,12.75916]
[1673931211819,9.03758869,1567.6,1567.3,0.066]
[1673931211991,1.463,1567.4,1567.3,0.066]
[1673931212205,4.57962407,1567.4,1567.3,0.066]
[1673931213184,4.5893708,1567.4,1567.3,0.066]
[1673931213351,5.29450788,1567.4,1567.3,0.066]
[1673931215238,5.35850788,1567.4,1567.1,21.43594859]
[1673931215466,1.463,1567.3,1567.1,21.43594859]
[1673931216037,1.463,1567.3,1567.1,12.94654859]
[1673931217788,3.1923708,1567.4,1567.1,12.94654859]
[1673931218986,3.65780788,1567.4,1567.1,12.94654859]
[1673931219678,3.65495283,1567.4,1567.1,12.94654859]
[1673931219994,0.066,1567.4,1567.1,23.14554681]
[1673931220188,0.066,1567.4,1567.3,1.459]
[1673931220408,0.066,1567.4,1567.3,27.79478528]
[1673931220771,0.066,1567.4,1567.3,32.52910684]
[1673931221134,28.94519869,1567.9,1567.3,32.59510684]
[1673931221341,1.0,1567.8,1567.4,6.25951068]
[1673931221608,32.06182276,1567.9,1567.5,19.1385]
[1673931221918,32.06182276,1567.9,1567.5,19.67329433]
[1673931227010,28.94519869,1567.9,1567.5,19.1385]
[1673931227273,28.94519869,1567.9,1567.5,19.67434193]
[1673931228129,30.37979673,1567.9,1567.5,19.67434193]
[1673931228496,30.37979673,1567.9,1567.5,23.54237112]
[1673931228497,28.94519869,1567.9,1567.5,23.54237112]
[1673931232206,30.37979673,1567.9,1567.5,23.54237112]
[1673931232849,28.94519869,1567.9,1567.5,23.54237112]
[1673931233167,28.89519869,1567.9,1567.5,23.54237112]
[1673931235059,28.89519869,1567.9,1567.5,24.74185359]
[1673931235270,28.89519869,1567.9,1567.6,1.75100634]
[1673931235587,28.89519869,1567.9,1567.7,12.75754]
[1673931235900,20.74149869,1567.9,1567.7,12.75754]
[1673931236322,1.02239869,1567.9,1567.7,12.75754]
[1673931237012,0.95639869,1567.9,1567.7,12.82354]
[1673931237382,1.71496369,1567.9,1567.7,12.82354]
[1673931237596,0.95639869,1567.9,1567.7,12.82354]
[1673931237918,1.71495607,1567.9,1567.7,12.82354]
[1673931238866,3.62764474,1568.0,1567.7,12.82354]
[1673931239011,5.58454982,1568.0,1567.7,12.82354]
[1673931239224,6.74426881,1568.0,1567.7,12.82354]
[1673931240171,0.06718229,1568.0,1567.7,14.97246083]
[1673931240711,0.06718229,1568.0,1567.7,18.16192522]
[1673931244404,0.06718229,1568.0,1567.9,19.13385]
[1673931244751,0.06718229,1568.0,1567.9,22.13385]
[1673931246016,0.06718229,1568.0,1567.9,22.19985]
[1673931246168,0.06718229,1568.0,1567.9,23.85295836]
[1673931248127,0.06718229,1568.0,1567.9,24.38880029]
[1673931248561,0.06718229,1568.0,1567.9,24.61880029]
[1673931250266,0.06718229,1568.0,1567.9,24.38880029]
[1673931251292,0.06718229,1568.0,1567.9,23.85295836]
[1673931254656,0.06467481,1568.0,1567.9,23.85295836]
[1673931256609,0.06467481,1568.0,1567.9,15.8219]
[1673931256610,0.74467481,1568.0,1567.9,15.8219]
[1673931257259,0.74467481,1568.0,1567.9,12.8219]
[1673931259241,0.74467481,1568.0,1567.9,6.44395]
[1673931261981,3.86129888,1568.0,1567.9,0.066]
[1673931263436,7.97184128,1568.0,1567.9,0.066]
[1673931263664,7.73051616,1568.0,1567.9,0.066]
[1673931263882,9.16163469,1568.0,1567.9,0.066]
[1673931264092,7.73051616,1568.0,1567.9,0.066]
[1673931264907,9.16163358,1568.0,1567.9,0.066]
[1673931265369,7.24883619,1568.0,1567.9,0.066]
[1673931268450,9.22763358,1568.0,1567.7,12.82308]
[1673931268601,1.72084038,1567.9,1567.7,12.82308]
[1673931270626,1.72084038,1567.9,1567.7,14.743278]
[1673931270835,1.56179223,1568.0,1567.7,14.743278]
[1673931270836,1.08480191,1568.0,1567.7,14.743278]
[1673931271067,1.08480191,1568.0,1567.7,15.27911993]
[1673931272100,0.13067481,1568.0,1567.9,19.13385]
[1673931272295,0.13067481,1568.0,1567.9,23.81385]
[1673931272518,0.13067481,1568.0,1567.9,33.78076816]
[1673931274171,0.06152818,1568.1,1567.9,41.55475336]
[1673931274376,0.06152818,1568.1,1568.0,5.459]
[1673931274587,0.06152818,1568.1,1568.0,18.2141]
[1673931274842,0.06152818,1568.1,1568.0,21.24985123]
[1673931276171,0.06152818,1568.1,1568.0,21.47985123]
[1673931276534,0.06152818,1568.1,1568.0,21.54585123]
[1673931278160,0.06152818,1568.1,1568.0,18.85685123]
[1673931278415,0.06152818,1568.1,1568.0,18.3210093]
[1673931279699,0.06152818,1568.1,1568.0,18.85685123]
[1673931281039,0.06152818,1568.1,1568.0,18.3210093]
[1673931281445,0.06152818,1568.1,1568.0,18.85685123]
[1673931302454,0.06152818,1568.1,1568.0,20.15685123]
[1673931303918,0.05845207,1568.1,1568.0,20.15685123]
[1673931310007,0.05845207,1568.1,1568.0,21.05907322]
[1673931311132,0.05845207,1568.1,1568.0,22.00888672]
[1673931311422,0.05845207,1568.1,1568.0,23.27509291]
[1673931316205,0.05845207,1568.1,1568.0,32.85222545]
[1673931316206,2.07e-06,1568.1,1568.0,32.85222545]
[1673931316463,1.0233434,1568.3,1568.1,13.75428]
[1673931316675,1.0233434,1568.3,1568.2,18.03110999]
[1673931316676,0.0692163,1568.3,1568.2,18.03110999]
[1673931316895,0.0692163,1568.3,1568.2,19.83315811]
[1673931318755,0.12484583,1568.4,1568.2,30.3933839]
[1673931318937,0.0692163,1568.5,1568.4,20.12776]
[1673931319172,0.0692163,1568.5,1568.4,35.7460023]
[1673931319743,0.0692163,1568.5,1568.4,35.28184423]
[1673931320123,0.0692163,1568.5,1568.4,36.36050575]
[1673931322167,0.0692163,1568.5,1568.4,36.42650575]
[1673931322374,0.0692163,1568.5,1568.4,32.00122016]
[1673931324439,0.0692163,1568.5,1568.4,30.78322016]
[1673931326960,0.0692163,1568.5,1568.4,38.93563245]
[1673931327228,0.0692163,1568.5,1568.4,35.11784423]
[1673931327383,0.07336561,1568.7,1568.6,1.0]
[1673931327598,0.07336561,1568.7,1568.6,36.66485229]
[1673931328054,0.07336561,1568.7,1568.6,34.22195278]
[1673931328760,0.07336561,1568.7,1568.6,35.64795278]
[1673931329081,0.07336561,1568.7,1568.6,37.02316448]
[1673931329902,0.07336561,1568.7,1568.6,36.1841177]
[1673931331512,5.61e-06,1568.7,1568.6,36.1841177]
[1673931333471,0.11112759,1568.9,1568.6,41.21690592]
[1673931333718,0.08950683,1569.0,1568.9,25.49556]
[1673931333912,0.06,1569.2,1568.9,38.55367052]
[1673931334127,0.06,1569.2,1569.1,25.49232]
[1673931334410,0.05690753,1569.2,1569.1,25.49232]
[1673931334577,0.05690753,1569.2,1569.1,28.49232]
[1673931334999,0.05690753,1569.2,1569.1,29.06419612]
[1673931335264,0.05690753,1569.2,1569.1,31.56388912]
[1673931339363,0.05690753,1569.2,1569.1,30.992013]
[1673931339575,0.05690753,1569.2,1569.1,31.56388912]
[1673931340568,0.05690753,1569.2,1569.1,35.89851319]
[1673931340817,0.1035073,1569.3,1569.1,35.9773226]
[1673931341026,0.1035073,1569.3,1569.2,4.3752117]
[1673931341355,0.1035073,1569.3,1569.2,17.69242782]
[1673931342785,0.12317621,1569.5,1569.2,33.77484011]
[1673931342997,0.12317621,1569.5,1569.3,6.94722006]
[1673931343223,22.8034,1569.9,1569.4,31.60406407]
[1673931343434,22.8034,1569.9,1569.6,25.48384]
[1673931343734,14.6938,1569.9,1569.8,19.11069]
[1673931343982,1.13421084,1570.0,1569.8,25.48092]
[1673931344366,1.13421084,1570.0,1569.8,19.11069]
[1673931344575,2.34721084,1570.0,1569.8,3.8406346]
[1673931344785,2.7401439,1570.0,1569.8,3.8406346]
[1673931346416,2.50765982,1569.9,1569.7,6.37026]
[1673931346726,1.223,1569.8,1569.7,6.37026]
[1673931347129,2.17987383,1569.9,1569.7,6.37026]
[1673931347563,2.42287383,1569.9,1569.7,6.37026]
[1673931347884,2.86557463,1569.9,1569.7,6.37026]
[1673931349919,2.86557463,1569.9,1569.7,6.43626]
[1673931350108,4.29669205,1569.9,1569.7,6.43626]
[1673931350321,2.86557463,1569.9,1569.7,6.43626]
[1673931350914,2.86557463,1569.9,1569.7,6.4333063]
[1673931351975,0.28655746,1569.8,1569.7,0.066]
[1673931353026,1.57152233,1569.8,1569.7,0.066]
[1673931356426,3.00263975,1569.8,1569.7,0.002]
[1673931356638,3.00263975,1569.8,1569.6,12.80778]
[1673931356815,2.67180198,1569.8,1569.6,12.80778]
[1673931358289,1.28547988,1569.7,1569.6,12.80778]
[1673931358516,1.28547988,1569.7,1569.6,15.80778]
[1673931359740,1.28547988,1569.7,1569.6,13.27784766]
[1673931360008,2.67180198,1569.8,1569.6,13.27784766]
[1673931360181,1.18153598,1569.7,1569.6,13.27784766]
[1673931360371,1.18153598,1569.7,1569.6,6.43681]
[1673931360372,1.47145707,1569.7,1569.6,6.43681]
[1673931360583,6.53895404,1569.7,1569.3,17.6977]
[1673931360793,5.29448271,1569.6,1569.3,17.6977]
[1673931361043,3.11662407,1569.5,1569.3,8.4275]
[1673931361423,3.11662407,1569.5,1569.1,12.83584]
[1673931361633,1.459,1569.3,1569.1,12.83584]
[1673931362070,11.42292407,1569.5,1569.1,12.83584]
[1673931362071,8.3063,1569.5,1569.1,12.83584]
[1673931362707,15.74075481,1569.6,1569.1,12.83584]
[1673931362923,23.55645481,1569.6,1569.1,12.83584]
[1673931363260,22.6061,1569.6,1569.1,12.83584]
[1673931363580,22.6061,1569.6,1569.1,15.694061]
[1673931363796,23.55645481,1569.6,1569.1,15.694061]
[1673931364010,22.6061,1569.6,1569.1,15.694061]
[1673931364364,22.6061,1569.6,1569.1,22.57550257]
[1673931364365,13.3974,1569.6,1569.1,22.57550257]
[1673931364578,13.3974,1569.6,1569.2,12.43044157]
[1673931364836,13.3974,1569.6,1569.3,23.47620823]
[1673931364837,0.066,1569.6,1569.3,23.47620823]
[1673931365048,0.066,1569.6,1569.4,6.97144157]
[1673931365270,0.066,1569.6,1569.5,23.68997407]
[1673931365629,0.066,1569.6,1569.5,26.91997407]
[1673931366052,0.066,1569.6,1569.5,36.12271888]
[1673931366384,0.066,1569.6,1569.5,37.57405665]
[1673931370040,0.066,1569.6,1569.5,41.42887415]
[1673931371195,0.066,1569.6,1569.5,37.06661184]
[1673931371402,0.12317621,1570.0,1569.5,37.58005665]
[1673931371662,0.12317621,1570.0,1569.7,25.48225]
[1673931371883,0.12317621,1570.0,1569.9,25.47932]
[1673931372032,0.12317621,1570.0,1569.9,25.54532]
[1673931372248,0.12317621,1570.0,1569.9,28.54532]
[1673931373078,0.12317621,1570.0,1569.9,29.99232]
[1673931373728,0.12317621,1570.0,1569.9,33.10894407]
[1673931373969,0.12317621,1570.0,1569.9,34.65998423]
[1673931374161,0.12317621,1570.0,1569.9,34.66198423]
[1673931374380,0.12317621,1570.0,1569.9,34.89198423]
[1673931374381,6.21e-06,1570.0,1569.9,34.89198423]
[1673931374587,6.21e-06,1570.0,1569.9,35.39942904]
[1673931375147,6.21e-06,1570.0,1569.9,34.89198423]
[1673931375297,6.21e-06,1570.0,1569.9,35.39942904]
[1673931376760,6.21e-06,1570.0,1569.9,33.95242904]
[1673931376970,6.21e-06,1570.0,1569.9,31.89194407]
[1673931377652,6.21e-06,1570.0,1569.9,28.54532]
[1673931381749,6.21e-06,1570.0,1569.9,22.17549]
[1673931381964,2.39536102,1570.0,1569.9,9.43583]
[1673931382116,2.63449294,1570.0,1569.9,9.43583]
[1673931382649,3.35403394,1570.0,1569.9,9.43583]
[1673931382859,4.78515136,1570.0,1569.9,6.43583]
[1673931383126,3.35403394,1570.0,1569.9,6.43583]
[1673931383647,4.78515136,1570.0,1569.9,6.43583]
[1673931385535,3.83479655,1570.0,1569.9,6.43583]
[1673931386556,3.84454328,1570.0,1569.9,0.066]
[1673931386767,2.47748788,1569.8,1569.7,9.43658]
[1673931389213,4.8869728,1569.8,1569.7,9.43658]
[1673931389370,5.12441234,1569.8,1569.7,9.43658]
[1673931389580,5.19041234,1569.8,1569.7,9.43658]
[1673931391739,4.00148788,1569.8,1569.7,9.43658]
[1673931391944,3.93548788,1569.8,1569.7,9.43658]
[1673931392174,5.70972726,1569.8,1569.7,3.066]
[1673931392470,6.04561619,1569.8,1569.7,3.0]
[1673931394372,6.04564849,1569.8,1569.7,3.0]
[1673931400067,2.54348788,1569.8,1569.7,3.0]
[1673931400228,2.47748788,1569.8,1569.7,15.74128]
[1673931400432,2.47748788,1569.8,1569.7,15.80728]
[1673931402177,3.69899181,1569.8,1569.7,15.80728]
[1673931403639,2.47748788,1569.8,1569.7,15.80728]
[1673931404040,3.69902549,1569.8,1569.7,15.80728]
[1673931404675,4.17865799,1569.8,1569.7,9.43664]
[1673931404994,5.03349852,1569.8,1569.7,3.066]
[1673931405243,8.47129591,1569.8,1569.7,3.0]
[1673931406586,5.03452566,1569.8,1569.7,3.0]
[1673931407008,4.08101064,1569.8,1569.7,3.0]
[1673931407276,4.01501064,1569.8,1569.7,3.0]
[1673931407775,5.92780803,1569.8,1569.7,3.0]
[1673931407994,5.99380803,1569.8,1569.7,3.0]
[1673931408824,5.99380803,1569.8,1569.6,0.066]
[1673931409045,2.29972293,1569.7,1569.5,0.066]
[1673931409217,4.33839336,1569.6,1569.4,0.066]
[1673931409419,2.6716504,1569.5,1569.3,14.76692]
[1673931409632,1.445,1569.4,1569.3,14.76692]
[1673931409868,1.445,1569.4,1569.3,6.43792]
[1673931410790,1.445,1569.4,1569.3,9.43792]
[1673931411462,1.445,1569.4,1569.3,9.43487787]
[1673931413613,1.445,1569.4,1569.3,0.066]
[1673931413614,1.68485977,1569.4,1569.3,0.066]
[1673931413824,2.90845511,1569.4,1569.3,0.066]
[1673931414722,1.68485977,1569.4,1569.3,0.066]
[1673931415246,1.68485977,1569.4,1569.2,6.37233]
[1673931415247,1.68485977,1569.4,1569.2,6.43833]
[1673931415396,1.459,1569.3,1569.2,6.43833]
[1673931415612,1.459,1569.3,1569.2,9.43833]
[1673931417242,1.72424575,1569.3,1569.2,9.43833]
[1673931421530,1.72424575,1569.3,1569.2,3.066]
[1673931421706,1.72424575,1569.3,1569.2,0.066]
[1673931424245,1.02224575,1569.3,1569.2,0.066]
[1673931424451,0.26524575,1569.3,1569.2,0.066]
[1673931425107,1.02224575,1569.3,1569.2,0.066]
[1673931426553,1.02224575,1569.3,1569.1,6.50550688]
[1673931426959,0.26524575,1569.3,1569.1,6.50550688]
[1673931428331,2.65845748,1569.4,1569.1,6.50550688]
[1673931429413,1.20945748,1569.4,1569.1,6.50550688]
[1673931430279,0.25585977,1569.4,1569.1,6.50550688]
[1673931431113,0.23985977,1569.4,1569.1,6.50550688]
[1673931432220,3.35648384,1569.4,1569.1,6.50550688]
[1673931432492,4.89827245,1569.3,1568.7,3.32829553]
[1673931432639,4.89827245,1569.3,1568.6,0.94510677]
[1673931432640,3.11662407,1568.8,1568.6,0.94510677]
[1673931432904,3.11662407,1568.8,1568.5,0.06466425]
[1673931433428,0.00974673,1568.7,1568.5,0.06466425]
[1673931433581,4.57562407,1568.6,1568.5,0.06466425]
[1673931439314,12.40773407,1568.6,1568.5,0.06466425]
[1673931439526,16.31305315,1568.6,1568.5,0.06466425]
[1673931442010,22.68816315,1568.6,1568.5,0.06466425]
[1673931444681,22.68816315,1568.6,1568.5,6.425e-05]
[1673931444833,1.0,1568.5,1568.4,0.07571954]
[1673931445041,20.01464407,1568.5,1568.4,0.07571954]
[1673931445253,23.04415139,1568.5,1568.4,0.07571954]
[1673931446367,28.53318109,1568.5,1568.4,0.07571954]
[1673931446527,28.53318109,1568.5,1568.3,0.00143908]
[1673931446741,7.71262407,1568.4,1568.3,0.00143908]
[1673931447094,20.46446407,1568.4,1568.3,0.00143908]
[1673931447246,24.19556321,1568.4,1568.3,0.00143908]
[1673931447898,38.42306321,1568.4,1568.3,0.00143908]
[1673931448542,38.43280994,1568.4,1568.3,0.00143908]
[1673931449882,42.41183964,1568.4,1568.3,0.00143908]
[1673931451182,38.43280994,1568.4,1568.3,0.00143908]
[1673931451590,1.0,1568.3,1567.9,0.16135095]
[1673931451768,1.458,1568.0,1567.9,0.16135095]
[1673931451975,10.95217407,1568.0,1567.9,0.16135095]
[1673931452222,11.95217407,1568.0,1567.9,0.16135095]
[1673931452669,13.4189208,1568.0,1567.9,0.16135095]
[1673931452941,24.20036788,1568.0,1567.9,0.09735095]
[1673931453819,28.17939758,1568.0,1567.9,0.09735095]
[1673931453988,24.20036788,1568.0,1567.9,0.09735095]
[1673931454410,1.0,1567.9,1567.8,0.08869903]
[1673931454636,10.17856383,1567.9,1567.8,0.08869903]
[1673931454815,22.93446383,1567.9,1567.8,0.08869903]
[1673931457347,22.98846383,1567.9,1567.8,0.08869903]
[1673931457561,23.00046383,1567.9,1567.8,0.08869903]
[1673931458451,21.54146383,1567.9,1567.8,0.08869903]
[1673931460440,25.52049353,1567.9,1567.8,0.08869903]
[1673931461512,25.52049353,1567.9,1567.8,0.00069903]
[1673931461700,29.97949353,1567.9,1567.5,0.10599444]
[1673931461914,1.45,1567.6,1567.5,0.10599444]
[1673931462127,27.68316377,1567.6,1567.5,0.10599444]
[1673931462459,23.93413407,1567.6,1567.5,0.10599444]
[1673931463463,27.91316377,1567.6,1567.5,0.10599444]
[1673931463669,31.34239015,1567.6,1567.5,0.10599444]
[1673931463885,32.80139015,1567.6,1567.5,0.10599444]
[1673931464316,27.37236045,1567.6,1567.5,0.10599444]
[1673931465668,27.38210718,1567.6,1567.5,0.10599444]
[1673931468252,27.44810718,1567.6,1567.5,0.10599444]
[1673931468773,31.42713688,1567.6,1567.5,0.10599444]
[1673931468981,31.42713688,1567.6,1567.5,0.00099444]
[1673931470554,27.44810718,1567.6,1567.5,0.00099444]
[1673931470724,31.42713688,1567.6,1567.5,0.00099444]
[1673931471297,35.88613688,1567.6,1567.5,0.00099444]
[1673931471605,35.88613688,1567.6,1567.2,0.11450193]
[1673931471606,0.00100556,1567.4,1567.2,0.11450193]
[1673931471770,11.95601407,1567.3,1567.2,0.11450193]
[1673931472296,12.18601407,1567.3,1567.2,0.11450193]
[1673931473168,12.1957608,1567.3,1567.2,0.11450193]
[1673931473701,12.1957608,1567.3,1567.2,0.00050193]
[1673931475367,18.6421508,1567.3,1567.2,0.00050193]
[1673931475544,22.44882049,1567.3,1567.2,0.00050193]
[1673931484898,3.18262407,1567.3,1567.2,0.00050193]
[1673931486057,4.18262407,1567.3,1567.2,0.00050193]
[1673931486267,3.18262407,1567.3,1567.2,0.00050193]
[1673931486791,3.18262407,1567.3,1567.2,0.77950193]
[1673931488100,3.18262407,1567.3,1567.2,0.00050193]
[1673931488529,3.1923708,1567.3,1567.2,0.00050193]
[1673931489371,3.1263708,1567.3,1567.2,0.00050193]
[1673931489734,4.1263708,1567.3,1567.2,0.00050193]
[1673931490678,4.1263708,1567.3,1567.2,0.77950193]
[1673931490679,3.11662407,1567.3,1567.2,0.77950193]
[1673931492076,0.06700556,1567.4,1567.2,0.77950193]
[1673931492300,3.18362963,1567.4,1567.2,0.77950193]
[1673931493888,0.06700556,1567.4,1567.2,3.16619298]
[1673931494413,0.06700556,1567.4,1567.2,9.54674298]
[1673931495933,0.0648214,1567.4,1567.2,9.54674298]
[1673931496354,0.0648214,1567.4,1567.2,9.66547652]
[1673931496579,1.00974673,1567.6,1567.2,9.61274298]
[1673931496794,3.11662407,1567.5,1567.2,9.61274298]
[1673931497270,3.11662407,1567.5,1567.2,10.55530067]
[1673931497798,3.11662407,1567.5,1567.2,9.73147652]
[1673931498009,3.11662407,1567.5,1567.2,9.61274298]
[1673931499217,3.11662407,1567.5,1567.2,10.55530067]
[1673931499425,3.11662407,1567.5,1567.2,9.09630067]
[1673931500662,3.11662407,1567.5,1567.2,8.27247652]
[1673931500948,3.11662407,1567.5,1567.2,7.22605193]
[1673931501344,3.11662407,1567.4,1567.2,0.06650193]
[1673931501681,1.0,1567.3,1567.2,0.06650193]
[1673931503221,4.11662407,1567.4,1567.2,0.06650193]
[1673931503655,3.11662407,1567.4,1567.2,0.06650193]
[1673931503830,4.11662407,1567.4,1567.2,0.06650193]
[1673931504040,4.11662407,1567.4,1567.2,0.00050193]
[1673931510032,3.11662407,1567.4,1567.2,0.00050193]
[1673931510589,1.0648214,1567.5,1567.2,0.00050193]
[1673931510779,3.18144547,1567.5,1567.2,0.00050193]
[1673931511437,3.11662407,1567.4,1567.2,0.00050193]
[1673931511753,4.1263708,1567.4,1567.2,0.00050193]
[1673931512134,1.0,1567.3,1567.2,0.00050193]
[1673931515079,4.11662407,1567.3,1567.2,0.00050193]
[1673931517714,3.11662407,1567.3,1567.0,11.66138742]
[1673931519224,3.11662407,1567.3,1567.1,0.94255769]
[1673931520434,0.07456813,1567.4,1567.1,0.94255769]
[1673931520662,5.62652668,1567.4,1567.1,8.74138785]
[1673931521064,3.1911922,1567.4,1567.1,8.74138785]
[1673931521273,0.0648214,1567.4,1567.2,0.94255769]
[1673931521531,0.0648214,1567.4,1567.3,6.38039]
[1673931522219,0.0648214,1567.4,1567.3,8.78194769]
[1673931522490,0.0648214,1567.4,1567.3,18.16233769]
[1673931522844,0.0648214,1567.4,1567.3,18.28107123]
[1673931523115,0.0648214,1567.4,1567.3,22.05184784]
[1673931523316,0.0648214,1567.4,1567.3,23.469508]
[1673931523751,0.0628214,1567.4,1567.3,24.84181165]